{"text_format":"1","workbook":"xlsx","n_sheets":6,"sheets":["マクロ確認","法令等様式","任意様式","入力例","設定","プルダウンリスト"],"not_rendered":{"charts":0,"images":2,"macros":1,"external_links":0,"defined_names":44,"comments":3,"pivot_tables":0},"unopened":[],"bounds":{"document_bytes":16777216,"sheet_cells":100000,"rows_first":2000,"rows_last":500,"rows_between":2000,"halvings":0,"cell_chars":16384,"cell_head_chars":4096},"cells_cut":0,"cells_raw":0,"read":"whole","date_system":"1900"}

{"sheet":"マクロ確認","index":0,"n_rows":16,"n_cols":13,"rows_kept":16,"cut":false,"hidden":false,"merged":[]}
[]
[]
[]
[]
[]
[]
[]
[]
[]
[]
[]
[]
[]
[]
[]
[null,null,null,null,null,null,null,null,null,null,null,null,"aaaa"]

{"sheet":"法令等様式","index":1,"n_rows":93,"n_cols":91,"rows_kept":93,"cut":false,"hidden":true,"merged":[[5,69,5,81],[6,58,6,68],[6,69,6,81],[6,82,6,95],[7,5,7,10],[7,11,7,13],[6,5,6,10],[6,11,6,13],[6,14,6,23],[6,24,6,35],[6,36,6,46],[6,47,6,57],[0,0,0,95],[1,1,1,13],[1,14,1,95],[2,1,2,93],[2,94,2,95],[3,1,18,4],[3,5,3,13],[3,14,3,57],[3,58,3,65],[3,66,3,95],[4,5,5,13],[4,14,5,23],[4,24,5,35],[4,36,4,81],[4,82,5,95],[5,36,5,46],[5,47,5,57],[5,58,5,68],[7,69,7,81],[7,82,7,95],[8,5,8,10],[8,11,8,13],[8,14,8,23],[8,24,8,35],[8,36,8,46],[8,47,8,57],[8,58,8,68],[8,69,8,81],[8,82,8,95],[7,14,7,23],[7,24,7,35],[7,36,7,46],[7,47,7,57],[7,58,7,68],[9,5,9,10],[9,11,9,13],[9,14,9,23],[9,24,9,35],[9,36,9,46],[9,47,9,57],[9,58,9,68],[9,69,9,81],[9,82,9,95],[10,58,10,68],[10,69,10,81],[10,82,10,95],[11,5,11,10],[11,11,11,13],[11,14,11,23],[11,24,11,35],[11,36,11,46],[11,47,11,57],[11,58,11,68],[10,5,10,10],[10,11,10,13],[10,14,10,23],[10,24,10,35],[10,36,10,46],[10,47,10,57],[11,69,11,81],[11,82,11,95],[12,5,12,10],[12,11,12,13],[12,14,12,23],[12,24,12,35],[12,36,12,46],[12,47,12,57],[12,58,12,68],[12,69,12,81],[12,82,12,95],[13,5,13,10],[13,11,13,13],[13,14,13,23],[13,24,13,35],[13,36,13,46],[13,47,13,57],[13,58,13,68],[13,69,13,81],[13,82,13,95],[14,58,14,68],[14,69,14,81],[14,82,14,95],[15,5,15,10],[15,11,15,13],[15,14,15,23],[15,24,15,35],[15,36,15,46],[15,47,15,57],[15,58,15,68],[14,5,14,10],[14,11,14,13],[14,14,14,23],[14,24,14,35],[14,36,14,46],[14,47,14,57],[15,69,15,81],[15,82,15,95],[16,5,16,10],[16,11,16,13],[16,14,16,23],[16,24,16,35],[16,36,16,46],[16,47,16,57],[16,58,16,68],[16,69,16,81],[16,82,16,95],[17,5,17,10],[17,11,17,13],[17,14,17,23],[17,24,17,35],[17,36,17,46],[17,47,17,57],[17,58,17,68],[17,69,17,81],[17,82,17,95],[33,69,33,81],[34,58,34,68],[34,69,34,81],[34,82,34,95],[35,5,35,10],[35,11,35,13],[18,69,18,81],[18,82,18,95],[19,0,20,5],[19,6,19,95],[20,6,22,95],[21,0,22,5],[18,5,18,13],[18,14,18,23],[18,24,18,35],[18,36,18,46],[18,47,18,57],[18,58,18,68],[34,5,34,10],[34,11,34,13],[34,14,34,23],[34,24,34,35],[34,36,34,46],[34,47,34,57],[23,0,28,95],[29,1,29,89],[29,90,29,95],[30,1,30,13],[30,14,30,95],[31,1,44,4],[31,5,31,13],[31,14,31,57],[31,58,31,65],[31,66,31,95],[32,5,33,13],[32,14,33,23],[32,24,33,35],[32,36,32,81],[32,82,33,95],[33,36,33,46],[33,47,33,57],[33,58,33,68],[35,69,35,81],[35,82,35,95],[36,5,36,10],[36,11,36,13],[36,14,36,23],[36,24,36,35],[36,36,36,46],[36,47,36,57],[36,58,36,68],[36,69,36,81],[36,82,36,95],[35,14,35,23],[35,24,35,35],[35,36,35,46],[35,47,35,57],[35,58,35,68],[37,5,37,10],[37,11,37,13],[37,14,37,23],[37,24,37,35],[37,36,37,46],[37,47,37,57],[37,58,37,68],[37,69,37,81],[37,82,37,95],[38,58,38,68],[38,69,38,81],[38,82,38,95],[39,5,39,10],[39,11,39,13],[39,14,39,23],[39,24,39,35],[39,36,39,46],[39,47,39,57],[39,58,39,68],[38,5,38,10],[38,11,38,13],[38,14,38,23],[38,24,38,35],[38,36,38,46],[38,47,38,57],[39,69,39,81],[39,82,39,95],[40,5,40,10],[40,11,40,13],[40,14,40,23],[40,24,40,35],[40,36,40,46],[40,47,40,57],[40,58,40,68],[40,69,40,81],[40,82,40,95],[41,5,41,10],[41,11,41,13],[41,14,41,23],[41,24,41,35],[41,36,41,46],[41,47,41,57],[41,58,41,68],[41,69,41,81],[41,82,41,95],[42,58,42,68],[42,69,42,81],[42,82,42,95],[43,5,43,10],[43,11,43,13],[43,14,43,23],[43,24,43,35],[43,36,43,46],[43,47,43,57],[43,58,43,68],[42,5,42,10],[42,11,42,13],[42,14,42,23],[42,24,42,35],[42,36,42,46],[42,47,42,57],[43,69,43,81],[43,82,43,95],[44,5,44,13],[44,14,44,23],[44,24,44,35],[44,36,44,46],[44,47,44,57],[44,58,44,68],[44,69,44,81],[44,82,44,95],[48,24,49,35],[48,36,48,81],[48,82,49,95],[49,36,49,46],[49,47,49,57],[49,58,49,68],[49,69,49,81],[45,0,45,95],[46,1,46,13],[46,14,46,95],[47,1,60,4],[47,5,47,13],[47,14,47,57],[47,58,47,65],[47,66,47,95],[48,5,49,13],[48,14,49,23],[50,58,50,68],[50,69,50,81],[50,82,50,95],[51,5,51,10],[51,11,51,13],[51,14,51,23],[51,24,51,35],[51,36,51,46],[51,47,51,57],[51,58,51,68],[50,5,50,10],[50,11,50,13],[50,14,50,23],[50,24,50,35],[50,36,50,46],[50,47,50,57],[51,69,51,81],[51,82,51,95],[52,5,52,10],[52,11,52,13],[52,14,52,23],[52,24,52,35],[52,36,52,46],[52,47,52,57],[52,58,52,68],[52,69,52,81],[52,82,52,95],[53,5,53,10],[53,11,53,13],[53,14,53,23],[53,24,53,35],[53,36,53,46],[53,47,53,57],[53,58,53,68],[53,69,53,81],[53,82,53,95],[54,58,54,68],[54,69,54,81],[54,82,54,95],[55,5,55,10],[55,11,55,13],[55,14,55,23],[55,24,55,35],[55,36,55,46],[55,47,55,57],[55,58,55,68],[54,5,54,10],[54,11,54,13],[54,14,54,23],[54,24,54,35],[54,36,54,46],[54,47,54,57],[55,69,55,81],[55,82,55,95],[56,5,56,10],[56,11,56,13],[56,14,56,23],[56,24,56,35],[56,36,56,46],[56,47,56,57],[56,58,56,68],[56,69,56,81],[56,82,56,95],[57,5,57,10],[57,11,57,13],[57,14,57,23],[57,24,57,35],[57,36,57,46],[57,47,57,57],[57,58,57,68],[57,69,57,81],[57,82,57,95],[58,58,58,68],[58,69,58,81],[58,82,58,95],[59,5,59,10],[59,11,59,13],[59,14,59,23],[59,24,59,35],[59,36,59,46],[59,47,59,57],[59,58,59,68],[58,5,58,10],[58,11,58,13],[58,14,58,23],[58,24,58,35],[58,36,58,46],[58,47,58,57],[59,69,59,81],[59,82,59,95],[60,5,60,13],[60,14,60,23],[60,24,60,35],[60,36,60,46],[60,47,60,57],[60,58,60,68],[60,69,60,81],[60,82,60,95],[64,14,65,23],[64,24,65,35],[64,36,64,81],[64,82,65,95],[65,36,65,46],[65,47,65,57],[65,58,65,68],[65,69,65,81],[61,1,61,89],[61,90,61,95],[62,1,62,13],[62,14,62,95],[63,1,76,4],[63,5,63,13],[63,14,63,57],[63,58,63,65],[63,66,63,95],[64,5,65,13],[66,58,66,68],[66,69,66,81],[66,82,66,95],[67,5,67,10],[67,11,67,13],[67,14,67,23],[67,24,67,35],[67,36,67,46],[67,47,67,57],[67,58,67,68],[66,5,66,10],[66,11,66,13],[66,14,66,23],[66,24,66,35],[66,36,66,46],[66,47,66,57],[67,69,67,81],[67,82,67,95],[68,5,68,10],[68,11,68,13],[68,14,68,23],[68,24,68,35],[68,36,68,46],[68,47,68,57],[68,58,68,68],[68,69,68,81],[68,82,68,95],[69,5,69,10],[69,11,69,13],[69,14,69,23],[69,24,69,35],[69,36,69,46],[69,47,69,57],[69,58,69,68],[69,69,69,81],[69,82,69,95],[70,58,70,68],[70,69,70,81],[70,82,70,95],[71,5,71,10],[71,11,71,13],[71,14,71,23],[71,24,71,35],[71,36,71,46],[71,47,71,57],[71,58,71,68],[70,5,70,10],[70,11,70,13],[70,14,70,23],[70,24,70,35],[70,36,70,46],[70,47,70,57],[71,69,71,81],[71,82,71,95],[72,5,72,10],[72,11,72,13],[72,14,72,23],[72,24,72,35],[72,36,72,46],[72,47,72,57],[72,58,72,68],[72,69,72,81],[72,82,72,95],[73,5,73,10],[73,11,73,13],[73,14,73,23],[73,24,73,35],[73,36,73,46],[73,47,73,57],[73,58,73,68],[73,69,73,81],[73,82,73,95],[74,58,74,68],[74,69,74,81],[74,82,74,95],[75,5,75,10],[75,11,75,13],[75,14,75,23],[75,24,75,35],[75,36,75,46],[75,47,75,57],[75,58,75,68],[74,5,74,10],[74,11,74,13],[74,14,74,23],[74,24,74,35],[74,36,74,46],[74,47,74,57],[75,69,75,81],[75,82,75,95],[76,5,76,13],[76,14,76,23],[76,24,76,35],[76,36,76,46],[76,47,76,57],[76,58,76,68],[76,69,76,81],[76,82,76,95],[80,24,81,35],[80,36,80,81],[80,82,81,95],[81,36,81,46],[81,47,81,57],[81,58,81,68],[81,69,81,81],[77,0,77,95],[78,1,78,13],[78,14,78,95],[79,1,92,4],[79,5,79,13],[79,14,79,57],[79,58,79,65],[79,66,79,95],[80,5,81,13],[80,14,81,23],[82,58,82,68],[82,69,82,81],[82,82,82,95],[83,5,83,10],[83,11,83,13],[83,14,83,23],[83,24,83,35],[83,36,83,46],[83,47,83,57],[83,58,83,68],[82,5,82,10],[82,11,82,13],[82,14,82,23],[82,24,82,35],[82,36,82,46],[82,47,82,57],[83,69,83,81],[83,82,83,95],[84,5,84,10],[84,11,84,13],[84,14,84,23],[84,24,84,35],[84,36,84,46],[84,47,84,57],[84,58,84,68],[84,69,84,81],[84,82,84,95],[85,5,85,10],[85,11,85,13],[85,14,85,23],[85,24,85,35],[85,36,85,46],[85,47,85,57],[85,58,85,68],[85,69,85,81],[85,82,85,95],[86,58,86,68],[86,69,86,81],[86,82,86,95],[87,5,87,10],[87,11,87,13],[87,14,87,23],[87,24,87,35],[87,36,87,46],[87,47,87,57],[87,58,87,68],[86,5,86,10],[86,11,86,13],[86,14,86,23],[86,24,86,35],[86,36,86,46],[86,47,86,57],[87,69,87,81],[87,82,87,95],[88,5,88,10],[88,11,88,13],[88,14,88,23],[88,24,88,35],[88,36,88,46],[88,47,88,57],[88,58,88,68],[88,69,88,81],[88,82,88,95],[91,69,91,81],[91,82,91,95],[89,5,89,10],[89,11,89,13],[89,14,89,23],[89,24,89,35],[89,36,89,46],[89,47,89,57],[89,58,89,68],[89,69,89,81],[89,82,89,95],[92,5,92,13],[92,14,92,23],[92,24,92,35],[92,36,92,46],[92,47,92,57],[92,58,92,68],[92,69,92,81],[92,82,92,95],[90,58,90,68],[90,69,90,81],[90,82,90,95],[91,5,91,10],[91,11,91,13],[91,14,91,23],[91,24,91,35],[91,36,91,46],[91,47,91,57],[91,58,91,68],[90,5,90,10],[90,11,90,13],[90,14,90,23],[90,24,90,35],[90,36,90,46],[90,47,90,57]]}
[]
[null,"（建物名称）"]
[null,"②"]
[null,"防火対象物棟別概要（第１号）",null,null,null,"用途",null,null,null,null,null,null,null,null,null,null,null,null,null,null,null,null,null,null,null,null,null,null,null,null,null,null,null,null,null,null,null,null,null,null,null,null,null,null,null,null,null,null,null,null,null,null,null,null,null,null,null,null,"構造"]
[null,null,null,null,null,null,null,null,null,null,null,null,null,null,"床面積",null,null,null,null,null,null,null,null,null,"用途",null,null,null,null,null,null,null,null,null,null,null,"消防用設備等の概要",null,null,null,null,null,null,null,null,null,null,null,null,null,null,null,null,null,null,null,null,null,null,null,null,null,null,null,null,null,null,null,null,null,null,null,null,null,null,null,null,null,null,null,null,null,"特殊消防用\n設備等の\n概　　要"]
[null,null,null,null,null,null,null,null,null,null,null,null,null,null,null,null,null,null,null,null,null,null,null,null,null,null,null,null,null,null,null,null,null,null,null,null,"消火設備",null,null,null,null,null,null,null,null,null,null,"警報設備",null,null,null,null,null,null,null,null,null,null,"避難設備",null,null,null,null,null,null,null,null,null,null,"消火活動\n上必要な\n施　　設"]
[null,null,null,null,null,null,null,null,null,null,null,"階"]
[null,null,null,null,null,null,null,null,null,null,null,"階"]
[null,null,null,null,null,null,null,null,null,null,null,"階"]
[null,null,null,null,null,null,null,null,null,null,null,"階"]
[null,null,null,null,null,null,null,null,null,null,null,"階"]
[null,null,null,null,null,null,null,null,null,null,null,"階"]
[null,null,null,null,null,null,null,null,null,null,null,"階"]
[null,null,null,null,null,null,null,null,null,null,null,"階"]
[null,null,null,null,null,null,null,null,null,null,null,"階"]
[null,null,null,null,null,null,null,null,null,null,null,"階"]
[null,null,null,null,null,null,null,null,null,null,null,"階"]
[null,null,null,null,null,null,null,null,null,null,null,"階"]
[null,null,null,null,null,"合計",null,null,null,null,null,null,null,null,{"$f":"SUM(O7:X18)","v":0}]
["備考"]
[null,null,null,null,null,null,"1　同一敷地内に2以上の棟がある場合には、棟ごとに「第　号様式防火対象物棟別概要\n 追加書類」に必要な事項を記入して添付すること。\n2　法人にあっては、その名称、代表者氏名及び主たる事務所の所在地を記入すること。\n3　建築面積及び延べ面積の欄は、同一敷地内に2以上の棟がある場合には、それぞれの\n 合計を記入すること。\n4　消防用設備等の概要欄には、屋外消火栓、動力消防ポンプ及び消防用水以外の消防用\n 設備等の概要を記入すること。\n5　※印の欄は、記入しないこと。\n6　防火対象物の配置図、各階平面図及び消防用設備等の設計書(消火器具、避難器具等\n の配置図を含む。)を添付すること。"]
[]
[]
[]
[]
[]
[]
[]
[]
[null,"防火対象物棟別概要追加書類",null,null,null,null,null,null,null,null,null,null,null,null,null,null,null,null,null,null,null,null,null,null,null,null,null,null,null,null,null,null,null,null,null,null,null,null,null,null,null,null,null,null,null,null,null,null,null,null,null,null,null,null,null,null,null,null,null,null,null,null,null,null,null,null,null,null,null,null,null,null,null,null,null,null,null,null,null,null,null,null,null,null,null,null,null,null,null,null,"③"]
[null,"（建物名称）"]
[null,"防火対象物棟別概要（第2号）",null,null,null,"用途",null,null,null,null,null,null,null,null,null,null,null,null,null,null,null,null,null,null,null,null,null,null,null,null,null,null,null,null,null,null,null,null,null,null,null,null,null,null,null,null,null,null,null,null,null,null,null,null,null,null,null,null,"構造"]
[null,null,null,null,null,null,null,null,null,null,null,null,null,null,"床面積",null,null,null,null,null,null,null,null,null,"用途",null,null,null,null,null,null,null,null,null,null,null,"消防用設備等の概要",null,null,null,null,null,null,null,null,null,null,null,null,null,null,null,null,null,null,null,null,null,null,null,null,null,null,null,null,null,null,null,null,null,null,null,null,null,null,null,null,null,null,null,null,null,"特殊消防用\n設備等の\n概　　要"]
[null,null,null,null,null,null,null,null,null,null,null,null,null,null,null,null,null,null,null,null,null,null,null,null,null,null,null,null,null,null,null,null,null,null,null,null,"消火設備",null,null,null,null,null,null,null,null,null,null,"警報設備",null,null,null,null,null,null,null,null,null,null,"避難設備",null,null,null,null,null,null,null,null,null,null,"消火活動\n上必要な\n施　　設"]
[null,null,null,null,null,null,null,null,null,null,null,"階"]
[null,null,null,null,null,null,null,null,null,null,null,"階"]
[null,null,null,null,null,null,null,null,null,null,null,"階"]
[null,null,null,null,null,null,null,null,null,null,null,"階"]
[null,null,null,null,null,null,null,null,null,null,null,"階"]
[null,null,null,null,null,null,null,null,null,null,null,"階"]
[null,null,null,null,null,null,null,null,null,null,null,"階"]
[null,null,null,null,null,null,null,null,null,null,null,"階"]
[null,null,null,null,null,null,null,null,null,null,null,"階"]
[null,null,null,null,null,null,null,null,null,null,null,"階"]
[null,null,null,null,null,"合計",null,null,null,null,null,null,null,null,{"$f":"SUM(O35:X44)","v":0}]
[]
[null,"（建物名称）"]
[null,"防火対象物棟別概要（第３号）",null,null,null,"用途",null,null,null,null,null,null,null,null,null,null,null,null,null,null,null,null,null,null,null,null,null,null,null,null,null,null,null,null,null,null,null,null,null,null,null,null,null,null,null,null,null,null,null,null,null,null,null,null,null,null,null,null,"構造"]
[null,null,null,null,null,null,null,null,null,null,null,null,null,null,"床面積",null,null,null,null,null,null,null,null,null,"用途",null,null,null,null,null,null,null,null,null,null,null,"消防用設備等の概要",null,null,null,null,null,null,null,null,null,null,null,null,null,null,null,null,null,null,null,null,null,null,null,null,null,null,null,null,null,null,null,null,null,null,null,null,null,null,null,null,null,null,null,null,null,"特殊消防用\n設備等の\n概　　要"]
[null,null,null,null,null,null,null,null,null,null,null,null,null,null,null,null,null,null,null,null,null,null,null,null,null,null,null,null,null,null,null,null,null,null,null,null,"消火設備",null,null,null,null,null,null,null,null,null,null,"警報設備",null,null,null,null,null,null,null,null,null,null,"避難設備",null,null,null,null,null,null,null,null,null,null,"消火活動\n上必要な\n施　　設"]
[null,null,null,null,null,null,null,null,null,null,null,"階"]
[null,null,null,null,null,null,null,null,null,null,null,"階"]
[null,null,null,null,null,null,null,null,null,null,null,"階"]
[null,null,null,null,null,null,null,null,null,null,null,"階"]
[null,null,null,null,null,null,null,null,null,null,null,"階"]
[null,null,null,null,null,null,null,null,null,null,null,"階"]
[null,null,null,null,null,null,null,null,null,null,null,"階"]
[null,null,null,null,null,null,null,null,null,null,null,"階"]
[null,null,null,null,null,null,null,null,null,null,null,"階"]
[null,null,null,null,null,null,null,null,null,null,null,"階"]
[null,null,null,null,null,"合計",null,null,null,null,null,null,null,null,{"$f":"SUM(O51:X60)","v":0}]
[null,"防火対象物棟別概要追加書類",null,null,null,null,null,null,null,null,null,null,null,null,null,null,null,null,null,null,null,null,null,null,null,null,null,null,null,null,null,null,null,null,null,null,null,null,null,null,null,null,null,null,null,null,null,null,null,null,null,null,null,null,null,null,null,null,null,null,null,null,null,null,null,null,null,null,null,null,null,null,null,null,null,null,null,null,null,null,null,null,null,null,null,null,null,null,null,null,"③"]
[null,"（建物名称）"]
[null,"防火対象物棟別概要（第４号）",null,null,null,"用途",null,null,null,null,null,null,null,null,null,null,null,null,null,null,null,null,null,null,null,null,null,null,null,null,null,null,null,null,null,null,null,null,null,null,null,null,null,null,null,null,null,null,null,null,null,null,null,null,null,null,null,null,"構造"]
[null,null,null,null,null,null,null,null,null,null,null,null,null,null,"床面積",null,null,null,null,null,null,null,null,null,"用途",null,null,null,null,null,null,null,null,null,null,null,"消防用設備等の概要",null,null,null,null,null,null,null,null,null,null,null,null,null,null,null,null,null,null,null,null,null,null,null,null,null,null,null,null,null,null,null,null,null,null,null,null,null,null,null,null,null,null,null,null,null,"特殊消防用\n設備等の\n概　　要"]
[null,null,null,null,null,null,null,null,null,null,null,null,null,null,null,null,null,null,null,null,null,null,null,null,null,null,null,null,null,null,null,null,null,null,null,null,"消火設備",null,null,null,null,null,null,null,null,null,null,"警報設備",null,null,null,null,null,null,null,null,null,null,"避難設備",null,null,null,null,null,null,null,null,null,null,"消火活動\n上必要な\n施　　設"]
[null,null,null,null,null,null,null,null,null,null,null,"階"]
[null,null,null,null,null,null,null,null,null,null,null,"階"]
[null,null,null,null,null,null,null,null,null,null,null,"階"]
[null,null,null,null,null,null,null,null,null,null,null,"階"]
[null,null,null,null,null,null,null,null,null,null,null,"階"]
[null,null,null,null,null,null,null,null,null,null,null,"階"]
[null,null,null,null,null,null,null,null,null,null,null,"階"]
[null,null,null,null,null,null,null,null,null,null,null,"階"]
[null,null,null,null,null,null,null,null,null,null,null,"階"]
[null,null,null,null,null,null,null,null,null,null,null,"階"]
[null,null,null,null,null,"合計",null,null,null,null,null,null,null,null,{"$f":"SUM(O67:X76)","v":0}]
[]
[null,"（建物名称）"]
[null,"防火対象物棟別概要（第５号）",null,null,null,"用途",null,null,null,null,null,null,null,null,null,null,null,null,null,null,null,null,null,null,null,null,null,null,null,null,null,null,null,null,null,null,null,null,null,null,null,null,null,null,null,null,null,null,null,null,null,null,null,null,null,null,null,null,"構造"]
[null,null,null,null,null,null,null,null,null,null,null,null,null,null,"床面積",null,null,null,null,null,null,null,null,null,"用途",null,null,null,null,null,null,null,null,null,null,null,"消防用設備等の概要",null,null,null,null,null,null,null,null,null,null,null,null,null,null,null,null,null,null,null,null,null,null,null,null,null,null,null,null,null,null,null,null,null,null,null,null,null,null,null,null,null,null,null,null,null,"特殊消防用\n設備等の\n概　　要"]
[null,null,null,null,null,null,null,null,null,null,null,null,null,null,null,null,null,null,null,null,null,null,null,null,null,null,null,null,null,null,null,null,null,null,null,null,"消火設備",null,null,null,null,null,null,null,null,null,null,"警報設備",null,null,null,null,null,null,null,null,null,null,"避難設備",null,null,null,null,null,null,null,null,null,null,"消火活動\n上必要な\n施　　設"]
[null,null,null,null,null,null,null,null,null,null,null,"階"]
[null,null,null,null,null,null,null,null,null,null,null,"階"]
[null,null,null,null,null,null,null,null,null,null,null,"階"]
[null,null,null,null,null,null,null,null,null,null,null,"階"]
[null,null,null,null,null,null,null,null,null,null,null,"階"]
[null,null,null,null,null,null,null,null,null,null,null,"階"]
[null,null,null,null,null,null,null,null,null,null,null,"階"]
[null,null,null,null,null,null,null,null,null,null,null,"階"]
[null,null,null,null,null,null,null,null,null,null,null,"階"]
[null,null,null,null,null,null,null,null,null,null,null,"階"]
[null,null,null,null,null,"合計",null,null,null,null,null,null,null,null,{"$f":"SUM(O83:X92)","v":0}]

{"sheet":"任意様式","index":2,"n_rows":0,"n_cols":0,"rows_kept":0,"cut":false,"hidden":true,"merged":[]}

{"sheet":"入力例","index":3,"n_rows":95,"n_cols":96,"rows_kept":95,"cut":false,"hidden":false,"merged":[[2,6,5,107],[6,6,9,107],[10,6,92,9],[10,10,13,18],[10,19,13,68],[10,69,13,77],[10,78,13,107],[14,10,27,18],[14,19,27,30],[14,31,27,42],[28,69,32,81],[28,82,32,94],[28,95,32,107],[33,10,37,15],[33,16,37,18],[33,19,37,30],[33,31,37,42],[33,43,37,55],[28,10,32,15],[28,16,32,18],[28,19,32,30],[28,31,32,42],[28,43,32,55],[28,56,32,68],[33,82,37,94],[14,43,17,94],[14,95,27,107],[18,43,27,55],[18,56,27,68],[18,69,27,81],[18,82,27,94],[33,95,37,107],[38,10,42,15],[38,16,42,18],[38,19,42,30],[38,31,42,42],[38,43,42,55],[38,56,42,68],[38,69,42,81],[38,82,42,94],[38,95,42,107],[33,56,37,68],[33,69,37,81],[43,10,47,15],[43,16,47,18],[43,19,47,30],[43,31,47,42],[43,43,47,55],[43,56,47,68],[43,69,47,81],[43,82,47,94],[43,95,47,107],[48,69,52,81],[48,82,52,94],[48,95,52,107],[53,10,57,15],[53,16,57,18],[53,19,57,30],[53,31,57,42],[53,43,57,55],[53,56,57,68],[53,69,57,81],[48,10,52,15],[48,16,52,18],[48,19,52,30],[48,31,52,42],[48,43,52,55],[48,56,52,68],[53,82,57,94],[53,95,57,107],[58,10,62,15],[58,16,62,18],[58,19,62,30],[58,31,62,42],[58,43,62,55],[58,56,62,68],[58,69,62,81],[58,82,62,94],[58,95,62,107],[63,10,67,15],[63,16,67,18],[63,19,67,30],[63,31,67,42],[63,43,67,55],[63,56,67,68],[63,69,67,81],[63,82,67,94],[63,95,67,107],[68,69,72,81],[68,82,72,94],[68,95,72,107],[73,10,77,15],[73,16,77,18],[73,19,77,30],[73,31,77,42],[73,43,77,55],[73,56,77,68],[73,69,77,81],[68,10,72,15],[68,16,72,18],[68,19,72,30],[68,31,72,42],[68,43,72,55],[68,56,72,68],[73,82,77,94],[73,95,77,107],[78,10,82,15],[78,16,82,18],[78,19,82,30],[78,31,82,42],[78,43,82,55],[78,56,82,68],[78,69,82,81],[78,82,82,94],[78,95,82,107],[83,10,87,15],[83,16,87,18],[83,19,87,30],[83,31,87,42],[83,43,87,55],[83,56,87,68],[83,69,87,81],[83,82,87,94],[83,95,87,107],[88,82,92,94],[88,95,92,107],[94,4,96,9],[94,10,129,101],[88,10,92,18],[88,19,92,30],[88,31,92,42],[88,43,92,55],[88,56,92,68],[88,69,92,81]]}
[]
[]
[null,null,null,null,null,null,"（建物名称）株式会社うるまビル"]
[]
[]
[]
[null,null,null,null,null,null,"②"]
[]
[]
[]
[null,null,null,null,null,null,"防火対象物棟別概要（第１号）",null,null,null,"用途",null,null,null,null,null,null,null,null,"１６項イ　特定複合用途",null,null,null,null,null,null,null,null,null,null,null,null,null,null,null,null,null,null,null,null,null,null,null,null,null,null,null,null,null,null,null,null,null,null,null,null,null,null,null,null,null,null,null,null,null,null,null,null,null,"構造",null,null,null,null,null,null,null,null,"鉄筋コンクリート造"]
[]
[]
[]
[null,null,null,null,null,null,null,null,null,null,null,null,null,null,null,null,null,null,null,"床面積",null,null,null,null,null,null,null,null,null,null,null,"用途",null,null,null,null,null,null,null,null,null,null,null,"消防用設備等の概要",null,null,null,null,null,null,null,null,null,null,null,null,null,null,null,null,null,null,null,null,null,null,null,null,null,null,null,null,null,null,null,null,null,null,null,null,null,null,null,null,null,null,null,null,null,null,null,null,null,null,null,"特殊消防用\n設備等の\n概　　要"]
[]
[]
[]
[null,null,null,null,null,null,null,null,null,null,null,null,null,null,null,null,null,null,null,null,null,null,null,null,null,null,null,null,null,null,null,null,null,null,null,null,null,null,null,null,null,null,null,"消火設備",null,null,null,null,null,null,null,null,null,null,null,null,"警報設備",null,null,null,null,null,null,null,null,null,null,null,null,"避難設備",null,null,null,null,null,null,null,null,null,null,null,null,"消火活動\n上必要な\n施　　設"]
[]
[]
[]
[]
[]
[]
[]
[]
[]
[null,null,null,null,null,null,null,null,null,null,"B1",null,null,null,null,null,"階",null,null,200.22,null,null,null,null,null,null,null,null,null,null,null,"倉庫",null,null,null,null,null,null,null,null,null,null,null,"消火器、内栓",null,null,null,null,null,null,null,null,null,null,null,null,"自火報\n非常放送",null,null,null,null,null,null,null,null,null,null,null,null,"誘導灯",null,null,null,null,null,null,null,null,null,null,null,null,"排煙設備"]
[]
[]
[]
[]
[null,null,null,null,null,null,null,null,null,null,1,null,null,null,null,null,"階",null,null,2500,null,null,null,null,null,null,null,null,null,null,null,"飲食店\n物品販売店",null,null,null,null,null,null,null,null,null,null,null,"消火器、内栓",null,null,null,null,null,null,null,null,null,null,null,null,"自火報\n非常放送",null,null,null,null,null,null,null,null,null,null,null,null,"誘導灯",null,null,null,null,null,null,null,null,null,null,null,null,"排煙設備"]
[]
[]
[]
[]
[null,null,null,null,null,null,null,null,null,null,2,null,null,null,null,null,"階",null,null,2000,null,null,null,null,null,null,null,null,null,null,null,"物品販売店",null,null,null,null,null,null,null,null,null,null,null,"消火器、内栓",null,null,null,null,null,null,null,null,null,null,null,null,"自火報\n非常放送",null,null,null,null,null,null,null,null,null,null,null,null,"誘導灯",null,null,null,null,null,null,null,null,null,null,null,null,"排煙設備"]
[]
[]
[]
[]
[null,null,null,null,null,null,null,null,null,null,3,null,null,null,null,null,"階",null,null,2000,null,null,null,null,null,null,null,null,null,null,null,"駐車場",null,null,null,null,null,null,null,null,null,null,null,"消火器、内栓",null,null,null,null,null,null,null,null,null,null,null,null,"自火報\n非常放送",null,null,null,null,null,null,null,null,null,null,null,null,"誘導灯",null,null,null,null,null,null,null,null,null,null,null,null,"排煙設備"]
[]
[]
[]
[]
[null,null,null,null,null,null,null,null,null,null,"PH",null,null,null,null,null,"階",null,null,104,null,null,null,null,null,null,null,null,null,null,null,null,null,null,null,null,null,null,null,null,null,null,null,"消火器、内栓",null,null,null,null,null,null,null,null,null,null,null,null,"自火報\n非常放送",null,null,null,null,null,null,null,null,null,null,null,null,"誘導灯",null,null,null,null,null,null,null,null,null,null,null,null,"排煙設備"]
[]
[]
[]
[]
[null,null,null,null,null,null,null,null,null,null,null,null,null,null,null,null,"階"]
[]
[]
[]
[]
[null,null,null,null,null,null,null,null,null,null,null,null,null,null,null,null,"階"]
[]
[]
[]
[]
[null,null,null,null,null,null,null,null,null,null,null,null,null,null,null,null,"階"]
[]
[]
[]
[]
[null,null,null,null,null,null,null,null,null,null,null,null,null,null,null,null,"階"]
[]
[]
[]
[]
[null,null,null,null,null,null,null,null,null,null,null,null,null,null,null,null,"階"]
[]
[]
[]
[]
[null,null,null,null,null,null,null,null,null,null,null,null,null,null,null,null,"階"]
[]
[]
[]
[]
[null,null,null,null,null,null,null,null,null,null,null,null,null,null,null,null,"階"]
[]
[]
[]
[]
[null,null,null,null,null,null,null,null,null,null,"合計",null,null,null,null,null,null,null,null,{"$f":"SUM(T29:AE88)","v":6804.2199999999993},null,null,null,null,null,null,null,null,null,null,null,null,null,null,null,null,null,null,null,null,null,null,null,"消火器、内栓",null,null,null,null,null,null,null,null,null,null,null,null,"自火報\n非常放送",null,null,null,null,null,null,null,null,null,null,null,null,"誘導灯",null,null,null,null,null,null,null,null,null,null,null,null,"排煙設備"]
[]
[]
[]
[]
[]
[null,null,null,null,"備考",null,null,null,null,null,"1　同一敷地内に2以上の棟がある場合には、棟ごとに「第　号様式防火対象物棟別概要\n 追加書類」に必要な事項を記入して添付すること。\n2　法人にあっては、その名称、代表者氏名及び主たる事務所の所在地を記入すること。\n3　建築面積及び延べ面積の欄は、同一敷地内に2以上の棟がある場合には、それぞれの\n 合計を記入すること。\n4　消防用設備等の概要欄には、屋外消火栓、動力消防ポンプ及び消防用水以外の消防用\n 設備等の概要を記入すること。\n5　※印の欄は、記入しないこと。\n6　防火対象物の配置図、各階平面図及び消防用設備等の設計書(消火器具、避難器具等の\n 配置図を含む。)を添付すること。"]

{"sheet":"設定","index":4,"n_rows":9,"n_cols":2,"rows_kept":9,"cut":false,"hidden":true,"merged":[]}
["バージョン確認","22.10.01"]
[]
["シート名","防火対象物棟別概要"]
[]
["シート保護","TTerX_JwW6Dv"]
[]
["手続名称","防火対象物使用開始届出書"]
[]
["様式名","棟別概要"]

{"sheet":"プルダウンリスト","index":5,"n_rows":286,"n_cols":9,"rows_kept":286,"cut":false,"hidden":true,"merged":[]}
[]
[null,null,null,"構造（例）",null,"用途項目","用途詳細",null,"用途（例）"]
[null,null,null,"鉄筋コンクリート造",null,"１項イ","劇場",null,{"$f":"F3&\"　\"&G3&\"　\"&H3","v":"１項イ　劇場　"}]
[null,null,null,"補強コンクリートブロック造",null,"１項イ","映画館",null,{"$f":"F4&\"　\"&G4&\"　\"&H4","v":"１項イ　映画館　"}]
[null,null,null,"コンクリートブロック造",null,"１項イ","演芸場",null,"１項イ　演芸場　"]
[null,null,null,"鉄骨造",null,"１項イ","観覧場",null,"１項イ　観覧場　"]
[null,null,null,"プレハブ",null,"１項イ","野球場","(客席を有する)",{"$f":"F7&\"　\"&G7&H7","v":"１項イ　野球場(客席を有する)"}]
[null,null,null,null,null,"１項イ","相撲場","(客席を有する)",{"$f":"F8&\"　\"&G8&H8","v":"１項イ　相撲場(客席を有する)"}]
[null,null,null,null,null,"１項イ","競馬場","(客席を有する)","１項イ　競馬場(客席を有する)"]
[null,null,null,null,null,"１項イ","競輪場","(客席を有する)","１項イ　競輪場(客席を有する)"]
[null,null,null,null,null,"１項イ","オートレース場","(客席を有する)","１項イ　オートレース場(客席を有する)"]
[null,null,null,null,null,"１項イ","体育館等","(客席を有する)","１項イ　体育館等(客席を有する)"]
[null,null,null,null,null,"１項ロ","市民会館",null,"１項ロ　市民会館"]
[null,null,null,null,null,"１項ロ","福祉会館",null,"１項ロ　福祉会館"]
[null,null,null,null,null,"１項ロ","音楽室",null,"１項ロ　音楽室"]
[null,null,null,null,null,"１項ロ","貸ホール",null,"１項ロ　貸ホール"]
[null,null,null,null,null,"１項ロ","貸講堂",null,"１項ロ　貸講堂"]
[null,null,null,null,null,"１項ロ","公民館",null,"１項ロ　公民館"]
[null,null,null,null,null,"１項ロ","結婚会館",null,"１項ロ　結婚会館"]
[null,null,null,null,null,"１項ロ","セレモニーホール",null,"１項ロ　セレモニーホール"]
[null,null,null,null,null,"１項ロ","集会場",null,"１項ロ　集会場"]
[null,null,null,null,null,"２項イ","キャバレー",null,"２項イ　キャバレー"]
[null,null,null,null,null,"２項イ","カフェー",null,"２項イ　カフェー"]
[null,null,null,null,null,"２項イ","ナイトクラブ",null,"２項イ　ナイトクラブ"]
[null,null,null,null,null,"２項イ","クラブ",null,"２項イ　クラブ"]
[null,null,null,null,null,"２項イ","バー",null,"２項イ　バー"]
[null,null,null,null,null,"２項イ","サロン",null,"２項イ　サロン"]
[null,null,null,null,null,"２項イ","ホストクラブ",null,"２項イ　ホストクラブ"]
[null,null,null,null,null,"２項ロ","遊技場",null,"２項ロ　遊技場"]
[null,null,null,null,null,"２項ロ","ダンスホール","(踊場概ね100㎡以上)","２項ロ　ダンスホール(踊場概ね100㎡以上)"]
[null,null,null,null,null,"２項ロ","ボウリング場",null,"２項ロ　ボウリング場"]
[null,null,null,null,null,"２項ロ","パチンコ店",null,"２項ロ　パチンコ店"]
[null,null,null,null,null,"２項ロ","スマートボール場",null,"２項ロ　スマートボール場"]
[null,null,null,null,null,"２項ロ","ビリヤード場",null,"２項ロ　ビリヤード場"]
[null,null,null,null,null,"２項ロ","ビンゴ場",null,"２項ロ　ビンゴ場"]
[null,null,null,null,null,"２項ロ","射的場",null,"２項ロ　射的場"]
[null,null,null,null,null,"２項ロ","ゴーゴー喫茶",null,"２項ロ　ゴーゴー喫茶"]
[null,null,null,null,null,"２項ロ","ディスコ",null,"２項ロ　ディスコ"]
[null,null,null,null,null,"２項ロ","ダンス教習場","(踊場概ね66㎡以上)","２項ロ　ダンス教習場(踊場概ね66㎡以上)"]
[null,null,null,null,null,"２項ロ","碁会所",null,"２項ロ　碁会所"]
[null,null,null,null,null,"２項ロ","ゲームセンター",null,"２項ロ　ゲームセンター"]
[null,null,null,null,null,"２項ハ","ファッションヘルス",null,"２項ハ　ファッションヘルス"]
[null,null,null,null,null,"２項ハ","性感マッサージ",null,"２項ハ　性感マッサージ"]
[null,null,null,null,null,"２項ハ","イメージクラブ",null,"２項ハ　イメージクラブ"]
[null,null,null,null,null,"２項ハ","SMクラブ",null,"２項ハ　SMクラブ"]
[null,null,null,null,null,"２項ハ","出会い系喫茶",null,"２項ハ　出会い系喫茶"]
[null,null,null,null,null,"２項ハ","ヌードスタジオ",null,"２項ハ　ヌードスタジオ"]
[null,null,null,null,null,"２項ハ","のぞき劇場","(興行場法適用ないもの)","２項ハ　のぞき劇場(興行場法適用ないもの)"]
[null,null,null,null,null,"２項ハ","セリクラ",null,"２項ハ　セリクラ"]
[null,null,null,null,null,"２項二","カラオケボックス",null,"２項二　カラオケボックス"]
[null,null,null,null,null,"２項二","漫画喫茶",null,"２項二　漫画喫茶"]
[null,null,null,null,null,"２項二","複合カフェー",null,"２項二　複合カフェー"]
[null,null,null,null,null,"２項二","テレフォンクラブ",null,"２項二　テレフォンクラブ"]
[null,null,null,null,null,"２項二","個室ビデオ",null,"２項二　個室ビデオ"]
[null,null,null,null,null,"３項イ","茶屋",null,"３項イ　茶屋"]
[null,null,null,null,null,"３項イ","料亭",null,"３項イ　料亭"]
[null,null,null,null,null,"３項イ","割烹",null,"３項イ　割烹"]
[null,null,null,null,null,"３項ロ","飲食店",null,"３項ロ　飲食店"]
[null,null,null,null,null,"３項ロ","喫茶店",null,"３項ロ　喫茶店"]
[null,null,null,null,null,"３項ロ","スナック","(客の遊興、接客を伴わない)","３項ロ　スナック(客の遊興、接客を伴わない)"]
[null,null,null,null,null,"３項ロ","結婚披露宴会場",null,"３項ロ　結婚披露宴会場"]
[null,null,null,null,null,"３項ロ","食堂",null,"３項ロ　食堂"]
[null,null,null,null,null,"３項ロ","そば屋",null,"３項ロ　そば屋"]
[null,null,null,null,null,"３項ロ","寿司屋",null,"３項ロ　寿司屋"]
[null,null,null,null,null,"３項ロ","レストラン",null,"３項ロ　レストラン"]
[null,null,null,null,null,"３項ロ","ビアホール",null,"３項ロ　ビアホール"]
[null,null,null,null,null,"３項ロ","スタンドバー",null,"３項ロ　スタンドバー"]
[null,null,null,null,null,"３項ロ","ライブハウス",null,"３項ロ　ライブハウス"]
[null,null,null,null,null,"４項","百貨店",null,"４項　百貨店"]
[null,null,null,null,null,"４項","物品販売店舗",null,"４項　物品販売店舗"]
[null,null,null,null,null,"４項","展示場",null,"４項　展示場"]
[null,null,null,null,null,"４項","魚店",null,{"$f":"F72&\"　\"&G72&H72","v":"４項　魚店"}]
[null,null,null,null,null,"４項","肉店",null,"４項　肉店"]
[null,null,null,null,null,"４項","米店",null,"４項　米店"]
[null,null,null,null,null,"４項","パン店",null,"４項　パン店"]
[null,null,null,null,null,"４項","乾物店",null,"４項　乾物店"]
[null,null,null,null,null,"４項","衣料店",null,"４項　衣料店"]
[null,null,null,null,null,"４項","洋服店",null,"４項　洋服店"]
[null,null,null,null,null,"４項","家具店",null,"４項　家具店"]
[null,null,null,null,null,"４項","営業用給油取扱所",null,"４項　営業用給油取扱所"]
[null,null,null,null,null,"４項","スーパーマーケット",null,"４項　スーパーマーケット"]
[null,null,null,null,null,"４項","展示を目的とする産業会館",null,"４項　展示を目的とする産業会館"]
[null,null,null,null,null,"４項","博覧会場",null,"４項　博覧会場"]
[null,null,null,null,null,"４項","見本市会場",null,"４項　見本市会場"]
[null,null,null,null,null,"４項","自動車販売展示場",null,"４項　自動車販売展示場"]
[null,null,null,null,null,"５項イ","旅館",null,"５項イ　旅館"]
[null,null,null,null,null,"５項イ","ホテル",null,"５項イ　ホテル"]
[null,null,null,null,null,"５項イ","宿泊所",null,"５項イ　宿泊所"]
[null,null,null,null,null,"５項イ","保養所",null,"５項イ　保養所"]
[null,null,null,null,null,"５項イ","ユースホステル",null,"５項イ　ユースホステル"]
[null,null,null,null,null,"５項イ","山小屋",null,"５項イ　山小屋"]
[null,null,null,null,null,"５項イ","ロッジ",null,"５項イ　ロッジ"]
[null,null,null,null,null,"５項イ","貸研修所の宿泊室",null,"５項イ　貸研修所の宿泊室"]
[null,null,null,null,null,"５項イ","青年の家",null,"５項イ　青年の家"]
[null,null,null,null,null,"５項イ","モーテル",null,"５項イ　モーテル"]
[null,null,null,null,null,"５項イ","マッサージ・レンタルルーム","(副次的に宿泊可能なもの)","５項イ　マッサージ・レンタルルーム(副次的に宿泊可能なもの)"]
[null,null,null,null,null,"５項ロ","寄宿舎",null,"５項ロ　寄宿舎"]
[null,null,null,null,null,"５項ロ","下宿",null,"５項ロ　下宿"]
[null,null,null,null,null,"５項ロ","共同住宅",null,"５項ロ　共同住宅"]
[null,null,null,null,null,"５項ロ","マンション",null,"５項ロ　マンション"]
[null,null,null,null,null,"５項ロ","アパート",null,"５項ロ　アパート"]
[null,null,null,null,null,"５項ロ","寮",null,"５項ロ　寮"]
[null,null,null,null,null,"５項ロ","事業所専用の研修・宿泊所",null,"５項ロ　事業所専用の研修・宿泊所"]
[null,null,null,null,null,"６項イ","病院",null,"６項イ　病院"]
[null,null,null,null,null,"６項イ","診療所",null,"６項イ　診療所"]
[null,null,null,null,null,"６項イ","有床診療所",null,"６項イ　有床診療所"]
[null,null,null,null,null,"６項イ","有床助産所",null,"６項イ　有床助産所"]
[null,null,null,null,null,"６項イ","無床診療所",null,"６項イ　無床診療所"]
[null,null,null,null,null,"６項イ","無床助産所",null,"６項イ　無床助産所"]
[null,null,null,null,null,"６項イ","クリニック",null,"６項イ　クリニック"]
[null,null,null,null,null,"６項ロ","老人短期入所施設",null,"６項ロ　老人短期入所施設"]
[null,null,null,null,null,"６項ロ","養護老人ホーム",null,"６項ロ　養護老人ホーム"]
[null,null,null,null,null,"６項ロ","特別養護老人ホーム",null,"６項ロ　特別養護老人ホーム"]
[null,null,null,null,null,"６項ロ","軽費老人ホーム","(避難が困難な障害者等を主として入所させるもの)","６項ロ　軽費老人ホーム(避難が困難な障害者等を主として入所させるもの)"]
[null,null,null,null,null,"６項ロ","有料老人ホーム","(避難が困難な障害者等を主として入所させるもの)","６項ロ　有料老人ホーム(避難が困難な障害者等を主として入所させるもの)"]
[null,null,null,null,null,"６項ロ","介護老人保健施設",null,"６項ロ　介護老人保健施設"]
[null,null,null,null,null,"６項ロ","老人短期入所事業を行う施設",null,"６項ロ　老人短期入所事業を行う施設"]
[null,null,null,null,null,"６項ロ","小規模多機能型居宅介護事業を行う施設",null,"６項ロ　小規模多機能型居宅介護事業を行う施設"]
[null,null,null,null,null,"６項ロ","認知症対応型老人共同生活援助事業を行う施設",null,"６項ロ　認知症対応型老人共同生活援助事業を行う施設"]
[null,null,null,null,null,"６項ロ","認知症高齢者グループホーム",null,"６項ロ　認知症高齢者グループホーム"]
[null,null,null,null,null,"６項ロ","救護施設",null,"６項ロ　救護施設"]
[null,null,null,null,null,"６項ロ","乳児院",null,"６項ロ　乳児院"]
[null,null,null,null,null,"６項ロ","障害児入所施設",null,"６項ロ　障害児入所施設"]
[null,null,null,null,null,"６項ロ","障害者支援施設",null,"６項ロ　障害者支援施設"]
[null,null,null,null,null,"６項ロ","身体障害者社会参加支援施設",null,"６項ロ　身体障害者社会参加支援施設"]
[null,null,null,null,null,"６項ロ","障害者の短期入所施設",null,"６項ロ　障害者の短期入所施設"]
[null,null,null,null,null,"６項ロ","共同生活援助施設",null,"６項ロ　共同生活援助施設"]
[null,null,null,null,null,"６項ロ","身体障害者福祉センター",null,"６項ロ　身体障害者福祉センター"]
[null,null,null,null,null,"６項ロ","障害者短期入所施設",null,"６項ロ　障害者短期入所施設"]
[null,null,null,null,null,"６項ロ","障害者ケア（グループ）ホーム",null,"６項ロ　障害者ケア（グループ）ホーム"]
[null,null,null,null,null,"６項ハ","老人デイサービスセンター",null,"６項ハ　老人デイサービスセンター"]
[null,null,null,null,null,"６項ハ","軽費老人ホーム","(避難が困難な障害者等を主として入所させるものを除く)","６項ハ　軽費老人ホーム(避難が困難な障害者等を主として入所させるものを除く)"]
[null,null,null,null,null,"６項ハ","老人福祉センター",null,"６項ハ　老人福祉センター"]
[null,null,null,null,null,"６項ハ","老人介護支援センター",null,"６項ハ　老人介護支援センター"]
[null,null,null,null,null,"６項ハ","有料老人ホーム","(避難が困難な障害者等を主として入所させるものを除く)","６項ハ　有料老人ホーム(避難が困難な障害者等を主として入所させるものを除く)"]
[null,null,null,null,null,"６項ハ","老人デイサービス施設",null,{"$f":"F136&\"　\"&G136&H136","v":"６項ハ　老人デイサービス施設"}]
[null,null,null,null,null,"６項ハ","小規模多機能型居宅介護事業を行う施設","(避難が困難な障害者等を主として入所させるものを除く)","６項ハ　小規模多機能型居宅介護事業を行う施設(避難が困難な障害者等を主として入所させるものを除く)"]
[null,null,null,null,null,"６項ハ","軽費老人ホームA型",null,"６項ハ　軽費老人ホームA型"]
[null,null,null,null,null,"６項ハ","軽費老人ホームB型",null,"６項ハ　軽費老人ホームB型"]
[null,null,null,null,null,"６項ハ","ケアハウス",null,"６項ハ　ケアハウス"]
[null,null,null,null,null,"６項ハ","老人福祉センター",null,"６項ハ　老人福祉センター"]
[null,null,null,null,null,"６項ハ","老人介護支援センター",null,"６項ハ　老人介護支援センター"]
[null,null,null,null,null,"６項ハ","更生施設",null,"６項ハ　更生施設"]
[null,null,null,null,null,"６項ハ","助産施設",null,"６項ハ　助産施設"]
[null,null,null,null,null,"６項ハ","保育所",null,"６項ハ　保育所"]
[null,null,null,null,null,"６項ハ","児童養護施設",null,"６項ハ　児童養護施設"]
[null,null,null,null,null,"６項ハ","児童自立支援施設",null,"６項ハ　児童自立支援施設"]
[null,null,null,null,null,"６項ハ","児童家庭支援センター",null,"６項ハ　児童家庭支援センター"]
[null,null,null,null,null,"６項ハ","児童一時預かり施設",null,"６項ハ　児童一時預かり施設"]
[null,null,null,null,null,"６項ハ","家庭的事業保育施設",null,"６項ハ　家庭的事業保育施設"]
[null,null,null,null,null,"６項ハ","乳児・幼児一時預かり施設","(乳児院等除く)","６項ハ　乳児・幼児一時預かり施設(乳児院等除く)"]
[null,null,null,null,null,"６項ハ","保育園",null,"６項ハ　保育園"]
[null,null,null,null,null,"６項ハ","乳児炎",null,"６項ハ　乳児炎"]
[null,null,null,null,null,"６項ハ","こども園",null,"６項ハ　こども園"]
[null,null,null,null,null,"６項ハ","ベビーホテル",null,"６項ハ　ベビーホテル"]
[null,null,null,null,null,"６項ハ","託児所",null,"６項ハ　託児所"]
[null,null,null,null,null,"６項ハ","事業所内保育所",null,"６項ハ　事業所内保育所"]
[null,null,null,null,null,"６項ハ","児童発達支援センター",null,"６項ハ　児童発達支援センター"]
[null,null,null,null,null,"６項ハ","情緒障害児短期治療施設",null,"６項ハ　情緒障害児短期治療施設"]
[null,null,null,null,null,"６項ハ","児童発達支援施設",null,"６項ハ　児童発達支援施設"]
[null,null,null,null,null,"６項ハ","放課後等デイサービス",null,"６項ハ　放課後等デイサービス"]
[null,null,null,null,null,"６項ハ","身体障害者福祉センター",null,"６項ハ　身体障害者福祉センター"]
[null,null,null,null,null,"６項ハ","障害者支援施設",null,"６項ハ　障害者支援施設"]
[null,null,null,null,null,"６項ハ","地域活動支援センター",null,"６項ハ　地域活動支援センター"]
[null,null,null,null,null,"６項ハ","福祉ホーム","(避難が困難な障害者等を主として入所させるものを除く)","６項ハ　福祉ホーム(避難が困難な障害者等を主として入所させるものを除く)"]
[null,null,null,null,null,"６項ハ","生活介護施設",null,"６項ハ　生活介護施設"]
[null,null,null,null,null,"６項ハ","障害者短期入所施設","(避難が困難な障害者等を主として入所させるものを除く)","６項ハ　障害者短期入所施設(避難が困難な障害者等を主として入所させるものを除く)"]
[null,null,null,null,null,"６項ハ","自立訓練施設",null,"６項ハ　自立訓練施設"]
[null,null,null,null,null,"６項ハ","就労移行支援施設",null,"６項ハ　就労移行支援施設"]
[null,null,null,null,null,"６項ハ","就労継続支援施設",null,"６項ハ　就労継続支援施設"]
[null,null,null,null,null,"６項ハ","共同生活援助施設",null,"６項ハ　共同生活援助施設"]
[null,null,null,null,null,"６項ハ","在宅障害者デイサービス施設",null,"６項ハ　在宅障害者デイサービス施設"]
[null,null,null,null,null,"６項ハ","障害者更生センター",null,"６項ハ　障害者更生センター"]
[null,null,null,null,null,"６項二","幼稚園",null,"６項二　幼稚園"]
[null,null,null,null,null,"６項二","特別支援学校",null,"６項二　特別支援学校"]
[null,null,null,null,null,"７項","小学校",null,"７項　小学校"]
[null,null,null,null,null,"７項","中学校",null,"７項　中学校"]
[null,null,null,null,null,"７項","高等学校",null,"７項　高等学校"]
[null,null,null,null,null,"７項","大学",null,"７項　大学"]
[null,null,null,null,null,"７項","専修学校",null,"７項　専修学校"]
[null,null,null,null,null,"７項","各種学校",null,"７項　各種学校"]
[null,null,null,null,null,"７項","消防学校",null,"７項　消防学校"]
[null,null,null,null,null,"７項","警察学校",null,"７項　警察学校"]
[null,null,null,null,null,"７項","理容学校",null,"７項　理容学校"]
[null,null,null,null,null,"７項","美容学校",null,"７項　美容学校"]
[null,null,null,null,null,"７項","洋裁学校",null,"７項　洋裁学校"]
[null,null,null,null,null,"７項","タイピスト学校",null,"７項　タイピスト学校"]
[null,null,null,null,null,"７項","料理学校",null,"７項　料理学校"]
[null,null,null,null,null,"７項","看護学校",null,"７項　看護学校"]
[null,null,null,null,null,"７項","職業訓練校",null,"７項　職業訓練校"]
[null,null,null,null,null,"７項","進学予備校",null,"７項　進学予備校"]
[null,null,null,null,null,"８項","図書館",null,"８項　図書館"]
[null,null,null,null,null,"８項","博物館",null,"８項　博物館"]
[null,null,null,null,null,"８項","美術館",null,"８項　美術館"]
[null,null,null,null,null,"８項","郷土資料館",null,"８項　郷土資料館"]
[null,null,null,null,null,"８項","記念館",null,"８項　記念館"]
[null,null,null,null,null,"８項","科学館",null,"８項　科学館"]
[null,null,null,null,null,"８項","画廊","(販売行為を行わないものに限る)","８項　画廊(販売行為を行わないものに限る)"]
[null,null,null,null,null,"８項","作品発表会場","(販売行為を行わないものに限る)","８項　作品発表会場(販売行為を行わないものに限る)"]
[null,null,null,null,null,"９項イ","蒸気浴場",null,{"$f":"F200&\"　\"&G200&H200","v":"９項イ　蒸気浴場"}]
[null,null,null,null,null,"９項イ","熱気浴場",null,"９項イ　熱気浴場"]
[null,null,null,null,null,"９項イ","公衆浴場",null,"９項イ　公衆浴場"]
[null,null,null,null,null,"９項イ","ソープランド",null,"９項イ　ソープランド"]
[null,null,null,null,null,"９項イ","サウナ浴場",null,"９項イ　サウナ浴場"]
[null,null,null,null,null,"９項イ","スーパー銭湯",null,"９項イ　スーパー銭湯"]
[null,null,null,null,null,"９項イ","岩盤浴",null,"９項イ　岩盤浴"]
[null,null,null,null,null,"９項ロ","銭湯","(軽食等の提供を伴うものを除く)","９項ロ　銭湯(軽食等の提供を伴うものを除く)"]
[null,null,null,null,null,"９項ロ","鉱泉浴場","(軽食等の提供を伴うものを除く)","９項ロ　鉱泉浴場(軽食等の提供を伴うものを除く)"]
[null,null,null,null,null,"９項ロ","砂場","(軽食等の提供を伴うものを除く)","９項ロ　砂場(軽食等の提供を伴うものを除く)"]
[null,null,null,null,null,"１０項","車両の停車場",null,"１０項　車両の停車場"]
[null,null,null,null,null,"１０項","鉄道車両の駅舎","(プラットホームを含む)","１０項　鉄道車両の駅舎(プラットホームを含む)"]
[null,null,null,null,null,"１０項","船舶の発着場","(旅客の乗降又は待合の用に供する施設に限る)","１０項　船舶の発着場(旅客の乗降又は待合の用に供する施設に限る)"]
[null,null,null,null,null,"１０項","航空機の発着場","(旅客の乗降又は待合の用に供する施設に限る)","１０項　航空機の発着場(旅客の乗降又は待合の用に供する施設に限る)"]
[null,null,null,null,null,"１１項","宗教施設","(営利目的のもの、不特定の者を対象とするものを除く)","１１項　宗教施設(営利目的のもの、不特定の者を対象とするものを除く)"]
[null,null,null,null,null,"１１項","神社","(営利目的のもの、不特定の者を対象とするものを除く)","１１項　神社(営利目的のもの、不特定の者を対象とするものを除く)"]
[null,null,null,null,null,"１１項","寺院","(営利目的のもの、不特定の者を対象とするものを除く)","１１項　寺院(営利目的のもの、不特定の者を対象とするものを除く)"]
[null,null,null,null,null,"１１項","教会","(営利目的のもの、不特定の者を対象とするものを除く)","１１項　教会(営利目的のもの、不特定の者を対象とするものを除く)"]
[null,null,null,null,null,"１２項イ","工場",null,"１２項イ　工場"]
[null,null,null,null,null,"１２項イ","作業場",null,"１２項イ　作業場"]
[null,null,null,null,null,"１２項イ","宅配専門ピザ屋",null,"１２項イ　宅配専門ピザ屋"]
[null,null,null,null,null,"１２項イ","給食センター","(学校と敷地を異にするもの)","１２項イ　給食センター(学校と敷地を異にするもの)"]
[null,null,null,null,null,"１２項イ","製造所",null,"１２項イ　製造所"]
[null,null,null,null,null,"１２項ロ","映画スタジオ",null,"１２項ロ　映画スタジオ"]
[null,null,null,null,null,"１２項ロ","テレビスタジオ",null,"１２項ロ　テレビスタジオ"]
[null,null,null,null,null,"１３項イ","自動車車庫","(住宅に付属するものは除く)","１３項イ　自動車車庫(住宅に付属するものは除く)"]
[null,null,null,null,null,"１３項イ","駐車場","(住宅に付属するものは除く)","１３項イ　駐車場(住宅に付属するものは除く)"]
[null,null,null,null,null,"１３項ロ","航空機等の格納庫",null,"１３項ロ　航空機等の格納庫"]
[null,null,null,null,null,"１４項","倉庫",null,"１４項　倉庫"]
[null,null,null,null,null,"１５項","その他の事業場",null,"１５項　その他の事業場"]
[null,null,null,null,null,"１５項","官公署",null,"１５項　官公署"]
[null,null,null,null,null,"１５項","銀行",null,"１５項　銀行"]
[null,null,null,null,null,"１５項","事務所",null,"１５項　事務所"]
[null,null,null,null,null,"１５項","取引所",null,"１５項　取引所"]
[null,null,null,null,null,"１５項","理容室",null,"１５項　理容室"]
[null,null,null,null,null,"１５項","美容室",null,"１５項　美容室"]
[null,null,null,null,null,"１５項","ラジオスタジオ",null,"１５項　ラジオスタジオ"]
[null,null,null,null,null,"１５項","発電所",null,"１５項　発電所"]
[null,null,null,null,null,"１５項","変電所",null,"１５項　変電所"]
[null,null,null,null,null,"１５項","ごみ処理場",null,"１５項　ごみ処理場"]
[null,null,null,null,null,"１５項","火葬場",null,"１５項　火葬場"]
[null,null,null,null,null,"１５項","ゴルフ練習場",null,"１５項　ゴルフ練習場"]
[null,null,null,null,null,"１５項","卸売市場",null,"１５項　卸売市場"]
[null,null,null,null,null,"１５項","写真館",null,"１５項　写真館"]
[null,null,null,null,null,"１５項","保健所",null,"１５項　保健所"]
[null,null,null,null,null,"１５項","新聞社",null,"１５項　新聞社"]
[null,null,null,null,null,"１５項","電報電話局",null,"１５項　電報電話局"]
[null,null,null,null,null,"１５項","郵便局",null,"１５項　郵便局"]
[null,null,null,null,null,"１５項","畜舎",null,"１５項　畜舎"]
[null,null,null,null,null,"１５項","研修所",null,"１５項　研修所"]
[null,null,null,null,null,"１５項","クリーニング店","(取り次ぎ店)","１５項　クリーニング店(取り次ぎ店)"]
[null,null,null,null,null,"１５項","職業訓練所",null,"１５項　職業訓練所"]
[null,null,null,null,null,"１５項","自動車教習所",null,"１５項　自動車教習所"]
[null,null,null,null,null,"１５項","納骨堂",null,"１５項　納骨堂"]
[null,null,null,null,null,"１５項","温室",null,"１５項　温室"]
[null,null,null,null,null,"１５項","動物病院",null,"１５項　動物病院"]
[null,null,null,null,null,"１５項","新聞販売所",null,"１５項　新聞販売所"]
[null,null,null,null,null,"１５項","採決センター",null,"１５項　採決センター"]
[null,null,null,null,null,"１５項","場外馬券売場",null,"１５項　場外馬券売場"]
[null,null,null,null,null,"１５項","持てる住宅",null,"１５項　持てる住宅"]
[null,null,null,null,null,"１５項","エステサロン",null,"１５項　エステサロン"]
[null,null,null,null,null,"１５項","体育館等",null,"１５項　体育館等"]
[null,null,null,null,null,"１５項","水族館",null,"１５項　水族館"]
[null,null,null,null,null,"１５項","学童保育クラブ",null,"１５項　学童保育クラブ"]
[null,null,null,null,null,"１５項","駐輪場",null,{"$f":"F264&\"　\"&G264&H264","v":"１５項　駐輪場"}]
[null,null,null,null,null,"１５項","はり灸院",null,"１５項　はり灸院"]
[null,null,null,null,null,"１５項","屋内ゲートボール場","(観覧席のないもの)","１５項　屋内ゲートボール場(観覧席のないもの)"]
[null,null,null,null,null,"１５項","ミニゴルフ場",null,"１５項　ミニゴルフ場"]
[null,null,null,null,null,"１５項","車検場",null,"１５項　車検場"]
[null,null,null,null,null,"１５項","スポーツ施設","(観覧席のないもの)","１５項　スポーツ施設(観覧席のないもの)"]
[null,null,null,null,null,"１５項","認知症カフェー",null,"１５項　認知症カフェー"]
[null,null,null,null,null,"１５項","エステサロン",null,"１５項　エステサロン"]
[null,null,null,null,null,"１５項","ネイルサロン",null,"１５項　ネイルサロン"]
[null,null,null,null,null,"１５項","整骨院",null,"１５項　整骨院"]
[null,null,null,null,null,"１５項","整体院",null,"１５項　整体院"]
[null,null,null,null,null,"１６項イ","特定複合用途",null,"１６項イ　特定複合用途"]
[null,null,null,null,null,"１６項ロ","非特定複合用途",null,"１６項ロ　非特定複合用途"]
[null,null,null,null,null,"１６の２項","地下街等",null,"１６の２項　地下街等"]
[null,null,null,null,null,"１６の３項","建築物の地階","(連続して地下道に面し、特定用途が存するもの)","１６の３項　建築物の地階(連続して地下道に面し、特定用途が存するもの)"]
[null,null,null,null,null,"１７項","重要文化財",null,"１７項　重要文化財"]
[null,null,null,null,null,"１７項","国宝",null,"１７項　国宝"]
[null,null,null,null,null,"１７項","重要有形民俗文化財",null,"１７項　重要有形民俗文化財"]
[null,null,null,null,null,"１７項","史跡",null,"１７項　史跡"]
[null,null,null,null,null,"１７項","条例指定文化財",null,"１７項　条例指定文化財"]
[null,null,null,null,null,"１８項","アーケード",null,"１８項　アーケード"]
[null,null,null,null,null,"１９項","山林",null,"１９項　山林"]
[null,null,null,null,null,"２０項","船車",null,"２０項　船車"]